bitfinex-derivatives/quotes_SOLF0:USTF0_20260226
["timestamp","ask_amount","ask_price","bid_price","bid_amount"]
[1772065875511,8.99082009,89.017,88.955,10.116]
[1772065876401,8.99082009,89.014,88.946,3.30248969]
[1772065877006,8.99082009,89.012,88.94,8.65144503]
[1772065877208,8.99082009,89.012,88.929,3.2678913]
[1772065877405,8.99082009,89.012,88.92,8.65144503]
[1772065878204,8.99082009,88.983,88.92,8.65144503]
[1772065878507,8.99082009,88.983,88.921,3.26346502]
[1772065878906,8.99082009,89.003,88.94,3.25866233]
[1772065879103,8.99082009,89.003,88.941,3.18840742]
[1772065879301,8.65144503,89.04,88.941,3.18840742]
[1772065879302,8.99082009,89.021,88.941,3.18840742]
[1772065879903,8.99082009,89.019,88.954,10.1161]
[1772065880102,8.99082009,89.019,88.924,3.18398395]
[1772065881104,8.99082009,89.019,88.877,26.34461403]
[1772065881105,8.99082009,89.039,88.941,3.19889897]
[1772065882009,8.99082009,89.023,88.965,10.1149]
[1772065883910,8.99082009,89.019,88.954,10.1161]
[1772065884109,8.99082009,89.019,88.94,8.65144503]
[1772065884714,8.99082009,89.005,88.944,10.1174]
[1772065885914,8.45871402,89.002,88.944,10.1174]
[1772065887117,8.45871402,88.998,88.944,10.1174]
[1772065887815,8.45871402,88.996,88.935,10.1183]
[1772065888013,8.45871402,88.996,88.926,6.0]
[1772065888215,8.45871402,88.996,88.925,3.18733399]
[1772065888718,10.1128,88.985,88.925,3.18733399]
[1772065888916,8.45871402,88.996,88.925,3.18733399]
[1772065889115,10.1118,88.994,88.927,3.20816808]
[1772065889915,10.1129,88.984,88.927,3.20816808]
[1772065890113,10.1129,88.984,88.875,33.72]
[1772065890114,8.45871402,88.983,88.91,3.20436672]
[1772065890817,8.45871402,88.959,88.888,3.20436672]
[1772065891317,8.45871402,88.968,88.9,10.1224]
[1772065891521,8.45871402,88.968,88.9,13.32306233]
[1772065891722,8.45871402,88.968,88.901,3.20066233]
[1772065892021,9.34556766,88.966,88.906,10.1217]
[1772065892819,9.34556766,88.966,88.901,3.20066233]
[1772065893415,9.34556766,88.955,88.901,3.20066233]
[1772065894123,10.1163,88.954,88.893,10.1231]
[1772065894323,9.34556766,88.953,88.893,10.1231]
[1772065896120,9.34556766,88.948,88.893,10.1231]
[1772065896424,9.34556766,88.948,88.88,8.65144503]
[1772065896425,9.34556766,88.948,88.867,3.30799861]
[1772065896918,19.46366766,88.938,88.867,3.30799861]
[1772065897520,9.34556766,88.937,88.867,3.30799861]
[1772065897923,9.34556766,88.937,88.878,10.1249]
[1772065898428,10.1181,88.938,88.878,10.1249]
[1772065898429,9.34556766,88.933,88.878,10.1249]
[1772065899513,9.34556766,88.933,88.886,10.1239]
[1772065900819,9.34556766,88.933,88.867,3.30799861]
[1772065901320,19.46446766,88.931,88.867,3.30799861]
[1772065902121,9.34556766,88.93,88.867,3.30799861]
[1772065902425,9.34556766,88.927,88.867,3.30799861]
[1772065903321,9.34556766,88.923,88.874,10.1253]
[1772065903929,9.34556766,88.923,88.883,10.1243]
[1772065904121,10.1178,88.941,88.882,3.54323472]
[1772065904323,9.34556766,88.94,88.882,3.54323472]
[1772065904919,9.34556766,88.937,88.883,10.1242]
[1772065905532,9.34556766,88.937,88.89,10.1235]
[1772065905723,9.34556766,88.953,88.882,3.54323472]
[1772065907030,9.34556766,88.951,88.897,10.1227]
[1772065908029,9.34556766,88.951,88.882,3.54323472]
[1772065909135,9.34556766,88.95,88.896,10.1227]
[1772065909534,9.34556766,88.95,88.88,8.66686358]
[1772065909535,9.34556766,88.95,88.904,10.1219]
[1772065909732,9.34556766,88.95,88.897,2.81114492]
[1772065910129,9.34556766,88.95,88.914,10.1207]
[1772065910433,9.34556766,88.967,88.897,2.81114492]
[1772065910636,9.34556766,88.967,88.901,2.80814262]
[1772065911726,9.34556766,88.967,88.912,10.1209]
[1772065913136,9.34556766,88.967,88.92,10.1201]
[1772065913632,8.66686358,88.96,88.87,3.05798745]
[1772065913835,9.34556766,88.959,88.87,3.05798745]
[1772065914230,9.34556766,88.937,88.88,3.05513889]
[1772065914736,9.34556766,88.937,88.888,10.1237]
[1772065915037,9.34556766,88.953,88.901,3.08022736]
[1772065916044,9.34556766,88.953,88.915,10.1206]
[1772065916239,9.34556766,88.953,88.901,3.08022736]
[1772065916435,9.34556766,88.953,88.913,10.1208]
[1772065917538,9.34556766,88.953,88.923,10.1197]
[1772065917938,9.34556766,88.953,88.901,3.08022736]
[1772065918442,9.34556766,88.953,88.914,10.1207]
[1772065919544,9.34556766,88.953,88.885,2.99538388]
[1772065920134,9.29656161,88.942,88.892,10.1232]
[1772065920435,9.29656161,88.942,88.885,2.99538388]
[1772065920641,9.29656161,88.942,88.908,10.1215]
[1772065921040,9.29656161,88.968,88.891,3.06031561]
[1772065921241,9.29656161,88.964,88.906,10.1216]
[1772065921640,9.29656161,88.964,88.891,3.06031561]
[1772065921841,9.29656161,88.948,88.888,10.1237]
[1772065922241,9.29656161,88.948,88.875,3.05134856]
[1772065924040,9.29656161,88.945,88.886,10.1239]
[1772065924432,9.29656161,88.945,88.875,3.05134856]
[1772065924832,9.29656161,88.943,88.894,10.123]
[1772065925633,9.29656161,88.988,88.893,3.10270248]
[1772065926238,9.29656161,88.968,88.893,3.10270248]
[1772065926841,9.29656161,88.968,88.871,6.0]
[1772065926842,9.29656161,88.968,88.91,3.08603086]
[1772065927035,9.29656161,88.984,88.921,3.08530904]
[1772065928938,9.29656161,88.984,88.933,10.1186]
[1772065929739,9.29656161,88.984,88.921,3.08530904]
[1772065930142,9.29656161,89.019,88.921,3.08530904]
[1772065931045,9.29656161,89.005,88.949,10.1167]
[1772065931642,9.29656161,89.005,88.941,2.39948606]
[1772065932151,9.29656161,89.005,88.963,10.1151]
[1772065932736,9.29656161,89.005,88.955,10.1161]
[1772065934743,10.1117,88.994,88.935,10.1183]
[1772065934946,9.29656161,88.993,88.922,2.20127184]
[1772065935647,10.42972888,89.05,88.883,183.83421403]
[1772065935648,9.29656161,89.011,88.954,2.15836443]
[1772065936945,9.29656161,89.011,88.975,10.1137]
[1772065938145,187.69867298,89.062,88.928,19.80782971]
[1772065938146,187.69867298,89.062,88.971,8.77475365]
[1772065938558,10.1043,89.06,88.992,8.77475365]
[1772065939862,10.106,89.045,88.99,8.66686358]
[1772065940060,9.29656161,89.044,88.975,8.77475365]
[1772065940260,9.29656161,89.044,88.993,10.1117]
[1772065942061,9.29656161,89.044,88.97,8.66686358]
[1772065942062,9.29656161,89.034,88.976,10.1137]
[1772065942956,9.29656161,89.032,88.976,10.1137]
[1772065943157,9.29656161,89.032,88.97,8.66686358]
[1772065943158,9.29656161,89.032,88.983,10.1129]
[1772065944065,9.29656161,89.032,88.99,10.112]
[1772065944867,9.29656161,89.061,88.973,8.77475365]
[1772065945065,9.29656161,89.058,88.974,8.77475365]
[1772065945961,9.04204631,89.053,88.999,10.1111]
[1772065947366,9.04204631,89.05,88.991,10.112]
[1772065947566,187.69867298,89.062,88.992,8.2894705]
[1772065948069,187.69867298,89.062,89.009,10.1099]
[1772065948569,9.04204631,89.068,88.99,8.66686358]
[1772065948570,9.04204631,89.068,89.011,8.2894705]
[1772065949868,9.04204631,89.068,89.032,10.1073]
[1772065950066,9.04204631,89.068,89.011,8.2894705]
[1772065950765,9.04204631,89.068,89.029,10.1077]
[1772065951668,9.04204631,89.068,89.011,8.2894705]
[1772065951669,9.04204631,89.09,89.031,8.73010743]
[1772065952064,9.04204631,89.09,89.054,10.1048]
[1772065952658,9.04204631,89.09,89.062,10.1039]
[1772065952866,8.6889722,89.109,89.048,8.73010743]
[1772065953861,8.6889722,89.109,89.054,10.1048]
[1772065954463,8.6889722,89.109,89.015,31.20096857]
[1772065954464,8.6889722,89.124,89.079,10.102]
[1772065954663,8.6889722,89.124,89.015,31.20096857]
[1772065954664,8.6889722,89.124,89.071,8.73010743]
[1772065954864,8.6889722,89.124,89.039,20.2131]
[1772065954865,8.6889722,89.124,89.047,8.73010743]
[1772065955169,8.6889722,89.124,89.068,10.1033]
[1772065955567,8.6889722,89.124,89.047,8.73010743]
[1772065955964,8.6889722,89.124,89.075,10.1024]
[1772065956164,8.6889722,89.124,89.047,8.73010743]
[1772065957072,8.6889722,89.122,89.065,10.1035]
[1772065957264,8.6889722,89.122,89.047,8.73010743]
[1772065957463,8.6889722,89.122,89.062,10.1039]
[1772065958165,8.6889722,89.122,89.079,10.102]
[1772065958760,8.6889722,89.139,89.079,18.83210743]
[1772065959164,8.6889722,89.137,89.069,10.1031]
[1772065959763,8.6889722,89.131,89.077,10.1022]
[1772065959967,8.6889722,89.131,89.053,8.73010743]
[1772065960368,8.6889722,89.128,89.067,10.1033]
[1772065960771,8.66686358,89.15,89.047,10.1056]
[1772065960772,8.6889722,89.1,89.047,10.1056]
[1772065960971,8.6889722,89.1,89.036,8.73010743]
[1772065961169,8.6889722,89.1,89.01,17.39697101]
[1772065961471,8.66686358,89.11,89.011,8.73010743]
[1772065961472,8.6889722,89.088,89.011,8.73010743]
[1772065962177,8.6889722,89.088,89.043,10.1061]
[1772065962774,8.6889722,89.088,89.035,8.73010743]
[1772065963660,8.6889722,89.088,89.017,10.109]
[1772065963661,8.6889722,89.088,89.018,8.73010743]
[1772065964170,8.6889722,89.085,89.018,8.73010743]
[1772065964570,8.6889722,89.085,89.001,8.73010743]
[1772065965470,8.6889722,89.075,89.011,8.73010743]
[1772065965671,8.6889722,89.109,89.011,8.73010743]
[1772065966066,8.6889722,89.093,89.013,8.73010743]
[1772065966263,8.6889722,89.093,89.014,8.73010743]
[1772065966572,8.6889722,89.088,89.016,8.73010743]
[1772065967371,8.6889722,89.088,89.025,8.73010743]
[1772065967768,8.6889722,89.119,89.025,8.73010743]
[1772065967974,8.6889722,89.119,89.044,8.73010743]
[1772065968975,8.6889722,89.118,89.044,8.73010743]
[1772065970266,8.6889722,89.118,89.056,8.73010743]
[1772065970466,8.6889722,89.135,89.061,8.73010743]
[1772065970677,296.77231285,89.195,89.081,8.73010743]
[1772065970678,8.6889722,89.169,89.081,8.73010743]
[1772065971878,10.092,89.168,89.094,10.1003]
[1772065972077,8.6889722,89.167,89.101,8.73010743]
[1772065973880,8.6889722,89.167,89.105,10.0991]
[1772065974080,8.6889722,89.167,89.105,18.82920743]
[1772065974468,8.6889722,89.167,89.1,8.63964023]
[1772065974469,8.6889722,89.167,89.106,8.73010743]
[1772065974669,42.71694394,89.183,89.113,8.73010743]
[1772065974875,8.6889722,89.182,89.113,8.73010743]
[1772065975379,8.6889722,89.179,89.118,10.0976]
[1772065976283,8.62085649,89.176,89.107,10.0988]
[1772065976684,8.62085649,89.176,89.096,8.70054981]
[1772065977984,8.62085649,89.174,89.107,8.70054981]
[1772065978382,296.77231285,89.195,89.125,8.70054981]
[1772065978683,8.62085649,89.194,89.125,8.70054981]
[1772065979974,8.62085649,89.194,89.12,8.63964023]
[1772065979975,8.62085649,89.194,89.138,8.70054981]
[1772065980483,1.95171743,89.228,89.1,8.63964023]
[1772065980484,8.62085649,89.191,89.119,8.70054981]
[1772065980879,8.62085649,89.178,89.119,8.70054981]
[1772065981080,8.62085649,89.178,89.109,10.0986]
[1772065981486,8.62085649,89.178,89.103,8.70054981]
[1772065981881,10.0924,89.165,89.106,10.0989]
[1772065982086,8.62085649,89.164,89.106,10.0989]
[1772065983491,8.62085649,89.164,89.103,8.70054981]
[1772065984087,8.63964023,89.21,89.08,8.70054981]
[1772065984088,8.62085649,89.153,89.08,8.70054981]
[1772065984292,8.62085649,89.153,89.06,8.70054981]
[1772065984492,10.0971,89.123,89.06,8.70054981]
[1772065984685,8.62085649,89.122,89.06,8.70054981]
[1772065985287,8.62085649,89.149,89.06,8.70054981]
[1772065985691,8.62085649,89.133,89.061,8.70054981]
[1772065985888,8.63964023,89.15,88.99,8.63964023]
[1772065985889,8.62085649,89.089,88.99,8.63964023]
[1772065986191,8.62085649,89.089,88.991,8.70054981]
[1772065986385,8.62085649,89.084,89.01,8.70054981]
[1772065986584,8.62085649,89.084,88.988,38.58551201]
[1772065986786,8.62085649,89.069,88.988,38.58551201]
[1772065987090,18.72645649,89.048,88.988,38.58551201]
[1772065987894,8.62085649,89.048,88.988,38.58551201]
[1772065988387,8.63964023,89.09,88.988,38.58551201]
[1772065988388,8.62085649,89.067,88.992,8.70054981]
[1772065988590,157.0224,89.148,88.992,8.70054981]
[1772065988591,8.62085649,89.089,88.992,8.70054981]
[1772065988783,8.62085649,89.089,89.011,8.70054981]
[1772065988987,8.62085649,89.106,89.032,8.70054981]
[1772065989188,8.62085649,89.106,89.007,8.70054981]
[1772065989587,10.1021,89.079,89.009,8.70054981]
[1772065990492,10.1021,89.079,89.011,8.70054981]
[1772065990889,10.1032,89.069,89.013,8.70054981]
[1772065991095,8.62085649,89.068,88.991,8.70054981]
[1772065991794,10.1035,89.067,88.994,8.70054981]
[1772065991995,8.62085649,89.088,88.994,8.70054981]
[1772065992595,8.62085649,89.088,88.99,8.63964023]
[1772065992596,10.1019,89.08,89.011,8.70054981]
[1772065992893,8.62085649,89.088,89.011,8.70054981]
[1772065993194,8.62085649,89.088,89.012,8.70054981]
[1772065993696,10.1022,89.078,89.012,8.70054981]
[1772065993891,8.62085649,89.088,89.012,8.70054981]
[1772065994092,8.62085649,89.129,89.031,8.70054981]
[1772065994592,10.0968,89.126,89.031,8.70054981]
[1772065994790,8.62085649,89.125,89.031,8.70054981]
[1772065995689,8.62085649,89.12,89.031,8.70054981]
[1772065996091,8.62085649,89.12,89.03,8.63964023]
[1772065996092,8.62085649,89.12,89.035,8.70054981]
[1772065996488,8.62085649,89.12,89.051,8.70054981]
[1772065996890,8.62085649,89.138,89.055,8.70054981]
[1772065997096,8.62085649,89.138,89.071,8.70054981]
[1772065997891,8.62085649,89.138,89.073,8.70054981]
[1772065998893,8.62085649,89.189,89.091,8.70054981]
[1772065999298,8.63964023,89.21,89.091,8.70054981]
[1772065999299,8.62085649,89.176,89.091,8.70054981]
[1772066000602,8.62085649,89.176,89.094,18.80084981]
[1772066001699,8.62085649,89.172,89.102,10.0994]
[1772066002100,8.62085649,89.169,89.102,10.0994]
[1772066002699,8.62085649,89.153,89.076,8.70054981]
[1772066003899,8.62085649,89.147,89.051,8.70054981]
[1772066004902,8.62085649,89.137,89.069,10.1031]
[1772066005299,8.62085649,89.137,89.07,8.70054981]
[1772066006196,8.62085649,89.137,89.059,10.1042]
[1772066006598,8.62085649,89.137,89.059,18.71070054]
[1772066007005,9.09177,89.125,89.06,8.60650054]
[1772066007201,9.09177,89.125,89.05,8.63964023]
[1772066007202,9.09177,89.125,89.064,8.60650054]
[1772066007503,13.7753676,89.213,89.064,8.60650054]
[1772066007504,9.09177,89.144,89.064,8.60650054]
[1772066007691,9.09177,89.144,89.071,8.60650054]
[1772066008498,9.09177,89.144,89.077,8.60650054]
[1772066010003,9.09177,89.144,89.084,8.60650054]
[1772066010595,9.09177,89.144,89.086,8.60650054]
[1772066012799,18.36460365,89.143,89.086,8.60650054]
[1772066013004,8.26970365,89.142,89.086,8.60650054]
[1772066014706,8.26970365,89.142,89.098,10.0998]
[1772066015503,8.26970365,89.161,89.106,10.0989]
[1772066016507,8.26970365,89.161,89.114,10.098]
[1772066020509,8.26970365,89.161,89.102,8.48310469]
[1772066021716,8.26970365,89.161,89.106,8.48310469]
[1772066022917,10.0929,89.16,89.106,8.48310469]
[1772066023111,18.36260365,89.16,89.106,8.48310469]
[1772066023315,8.26970365,89.205,89.106,8.48310469]
[1772066024013,10.0927,89.162,89.106,8.48310469]
[1772066024818,10.0927,89.162,89.114,8.48310469]
[1772066025521,8.06647398,89.217,89.09,8.63964023]
[1772066025522,8.26970365,89.154,89.098,8.48310469]
[1772066026519,8.26970365,89.139,89.082,8.48310469]
[1772066026724,8.26970365,89.139,89.065,8.48310469]
[1772066027017,10.1009,89.089,89.035,10.1069]
[1772066027225,8.26970365,89.093,89.031,8.48310469]
[1772066027522,8.26970365,89.135,89.031,8.48310469]
[1772066027718,20.1912,89.136,89.035,8.48310469]
[1772066027719,10.1008,89.09,89.035,8.48310469]
[1772066029124,10.0998,89.1,89.037,10.1068]
[1772066029317,10.0998,89.1,89.038,8.48310469]
[1772066029713,8.63703303,89.16,89.03,8.63703303]
[1772066029714,8.26970365,89.119,89.055,8.48310469]
[1772066029923,8.26970365,89.119,89.039,8.48310469]
[1772066030922,10.0993,89.103,89.045,8.48310469]
[1772066031123,8.26970365,89.102,89.045,8.48310469]
[1772066031717,10.0999,89.098,89.045,8.48310469]
[1772066031919,8.26970365,89.129,89.045,8.48310469]
[1772066032315,8.26970365,89.129,89.063,8.48310469]
[1772066032316,10.0978,89.116,89.063,8.48310469]
[1772066032524,8.26970365,89.129,89.063,8.48310469]
[1772066033227,8.26970365,89.127,89.065,8.48310469]
[1772066033823,8.26970365,89.127,89.068,8.48310469]
[1772066034929,8.26970365,89.127,89.077,10.1022]
[1772066037433,8.26970365,89.127,89.084,10.1014]
[1772066038330,10.0944,89.146,89.084,10.1014]
[1772066038532,8.72436784,89.145,89.085,8.17525646]
[1772066039933,8.72436784,89.145,89.088,10.101]
[1772066040433,8.72436784,89.14,89.088,10.101]
[1772066040634,8.72436784,89.14,89.071,8.17525646]
[1772066040938,8.72436784,89.14,89.051,8.17525646]
[1772066042034,8.72436784,89.13,89.074,10.1025]
[1772066042640,8.72436784,89.151,89.079,8.17525646]
[1772066042834,8.72436784,89.151,89.047,8.17525646]
[1772066043039,10.44828674,89.189,89.051,8.17525646]
[1772066043040,8.72436784,89.149,89.051,8.17525646]
[1772066043238,8.72436784,89.123,89.076,10.1023]
[1772066043636,8.72436784,89.123,89.076,8.17525646]
[1772066043832,8.63703303,89.15,89.076,8.17525646]
[1772066043833,8.72436784,89.149,89.076,8.17525646]
[1772066044936,8.72436784,89.14,89.089,10.1008]
[1772066045139,8.72436784,89.14,89.052,8.17525646]
[1772066045737,8.72436784,89.135,89.069,8.17525646]
[1772066046940,8.72436784,89.135,89.084,8.17525646]
[1772066047946,8.72436784,89.135,89.087,10.101]
[1772066048547,8.72436784,89.135,89.089,10.1008]
[1772066049846,8.72436784,89.135,89.088,8.17525646]
[1772066051244,8.72436784,89.135,89.08,10.1018]
[1772066051444,8.72436784,89.135,89.087,10.1011]
[1772066051749,8.72436784,89.134,89.073,8.17525646]
[1772066053043,8.72436784,89.134,89.08,10.1019]
[1772066054144,8.72436784,89.132,89.08,10.1019]
[1772066054340,8.72436784,89.132,89.062,10.1039]
[1772066054642,8.72436784,89.115,89.056,8.17525646]
[1772066056150,8.72436784,89.131,89.07,8.17525646]
[1772066056348,8.08449901,89.165,89.07,8.17525646]
[1772066056549,8.63703303,89.17,89.091,10.1006]
[1772066056550,10.0951,89.14,89.091,10.1006]
[1772066057244,8.72436784,89.144,89.096,8.17525646]
[1772066057847,8.72436784,89.144,89.106,10.0989]
[1772066058250,8.72436784,89.158,89.107,8.17525646]
[1772066058750,8.72436784,89.158,89.112,10.0982]
[1772066059250,8.72436784,89.158,89.112,18.27345646]
[1772066059453,8.72436784,89.174,89.12,8.17525646]
[1772066061053,8.72436784,89.174,89.121,10.0972]
[1772066061255,8.72436784,89.174,89.12,8.17525646]
[1772066062055,10.0894,89.191,89.12,8.17525646]
[1772066062056,8.72436784,89.189,89.137,8.17525646]
[1772066062753,8.72436784,89.187,89.121,8.17525646]
[1772066063851,10.09,89.185,89.129,10.0963]
[1772066064053,8.72436784,89.184,89.129,10.0963]
[1772066064253,8.72436784,89.184,89.121,8.17525646]
[1772066064457,8.72436784,89.184,89.137,10.0953]
[1772066065352,8.72436784,89.184,89.121,8.17525646]
[1772066066354,8.72436784,89.184,89.135,10.0956]
[1772066067048,10.0903,89.183,89.127,10.0966]
[1772066067248,10.0903,89.183,89.127,18.87820792]
[1772066067451,8.66099318,89.203,89.128,8.78160792]
[1772066068053,8.66099318,89.195,89.128,8.78160792]
[1772066068651,8.66099318,89.194,89.128,8.78160792]
[1772066069453,8.66099318,89.194,89.13,8.78160792]
[1772066070460,10.0893,89.192,89.131,10.0961]
[1772066070660,8.66099318,89.194,89.132,8.78160792]
[1772066070957,8.66099318,89.194,89.112,8.78160792]
[1772066071158,8.66099318,89.178,89.112,8.78160792]
[1772066071665,8.66099318,89.178,89.123,8.78160792]
[1772066073056,8.66099318,89.178,89.122,10.0971]
[1772066073057,8.66099318,89.178,89.125,18.42936201]
[1772066073259,8.66099318,89.178,89.13,3.21869125]
[1772066073460,18.75179318,89.178,89.13,3.21869125]
[1772066073657,8.79640193,89.177,89.125,8.33266201]
[1772066073858,8.79640193,89.177,89.13,3.21869125]
[1772066074866,8.79640193,89.161,89.093,8.33266201]
[1772066075066,3.21869125,89.14,89.08,3.21869125]
[1772066075364,8.79640193,89.13,89.073,10.1026]
[1772066075571,8.79640193,89.149,89.09,3.21869125]
[1772066075963,3.21869125,89.14,89.081,8.33266201]
[1772066076171,8.79640193,89.139,89.081,8.33266201]
[1772066076464,8.79640193,89.139,89.07,429.88371782]
[1772066076656,8.79640193,89.137,89.09,3.21869125]
[1772066076859,8.79640193,89.137,89.08,3.21869125]
[1772066077365,8.79640193,89.137,89.071,8.33266201]
[1772066077556,8.79640193,89.137,89.09,10.1007]
[1772066078358,8.79640193,89.154,89.093,8.33266201]
[1772066079066,8.79640193,89.154,89.099,8.33266201]
[1772066080571,18.89010193,89.153,89.099,8.33266201]
[1772066080779,8.79640193,89.152,89.099,8.33266201]
[1772066081773,8.79640193,89.148,89.082,10.1016]
[1772066081969,8.79640193,89.148,89.07,434.99768858]
[1772066082161,8.79640193,89.148,89.071,8.33266201]
[1772066083964,8.79640193,89.137,89.072,8.33266201]
[1772066084872,8.79640193,89.137,89.077,10.1022]
[1772066085068,8.79640193,89.137,89.078,8.33266201]
[1772066085267,8.79640193,89.154,89.081,8.33266201]
[1772066086076,8.79640193,89.152,89.096,10.1001]
[1772066086878,8.63067951,89.18,89.081,8.33266201]
[1772066086879,8.79640193,89.135,89.081,8.33266201]
[1772066088476,10.0952,89.139,89.081,8.33266201]
[1772066089877,10.0952,89.139,89.082,8.33266201]
[1772066090478,8.79640193,89.146,89.083,18.43426201]
[1772066090676,8.79640193,89.146,89.084,8.33266201]
[1772066091968,8.79640193,89.146,89.096,10.1]
[1772066092779,8.79640193,89.146,89.097,8.33266201]
[1772066092972,8.79640193,89.146,89.081,8.33266201]
[1772066093778,8.79640193,89.135,89.083,10.1016]
[1772066094973,8.04254898,89.172,89.084,8.33266201]
[1772066095178,8.79640193,89.158,89.107,10.0988]
[1772066095379,8.79640193,89.158,89.084,8.33266201]
[1772066096373,8.20935132,89.14,89.09,10.1007]
[1772066097473,8.20935132,89.14,89.084,8.33266201]
[1772066097474,8.20935132,89.14,89.097,10.0999]
[1772066099174,10.0917,89.171,89.115,8.5404555]
[1772066099380,8.20935132,89.17,89.11,3.21937714]
[1772066099975,8.20935132,89.168,89.111,10.0984]
[1772066100475,8.20935132,89.168,89.1,3.21937714]
[1772066100879,8.20935132,89.135,89.09,3.21937714]
[1772066101475,8.20935132,89.132,89.09,3.21937714]
[1772066102376,10.0964,89.129,89.09,3.21937714]
[1772066103179,10.0964,89.129,89.08,3.21937714]
[1772066103379,10.0969,89.125,89.08,3.21937714]
[1772066103585,8.20935132,89.124,89.07,3.21937714]
[1772066103785,8.20935132,89.119,89.06,3.21937714]
[1772066103982,10.0993,89.104,89.06,3.21937714]
[1772066104184,8.20935132,89.104,89.06,3.21937714]
[1772066104387,8.20935132,89.104,89.05,3.21937714]
[1772066104587,8.20935132,89.104,89.06,3.21937714]
[1772066104886,10.0997,89.1,89.06,3.21937714]
[1772066105284,8.20935132,89.099,89.042,18.6465555]
[1772066105483,8.20935132,89.099,89.046,18.6461555]
[1772066106092,10.0987,89.108,89.047,8.5404555]
[1772066106286,10.0987,89.108,89.05,8.5404555]
[1772066106487,8.20935132,89.116,89.051,8.5404555]
[1772066106983,8.20935132,89.159,89.071,8.5404555]
[1772066107878,10.0956,89.136,89.077,8.5404555]
[1772066109286,10.0943,89.147,89.091,8.5404555]
[1772066109883,10.0933,89.157,89.093,8.5404555]
[1772066110690,8.20935132,89.16,89.106,8.5404555]
[1772066111089,8.20935132,89.16,89.051,33.69]
[1772066111090,8.20935132,89.184,89.123,8.5404555]
[1772066111884,29.09504335,89.22,89.11,8.63696547]
[1772066111885,28.6674292,89.22,89.15,8.63696547]
[1772066112187,8.20935132,89.219,89.151,8.5404555]
[1772066112794,8.20935132,89.219,89.154,8.5404555]
[1772066113193,8.20935132,89.238,89.154,8.5404555]
[1772066113398,8.20935132,89.235,89.156,10.0933]
[1772066114095,8.20935132,89.23,89.156,18.6337555]
[1772066114491,8.20935132,89.23,89.158,10.093]
[1772066114688,8.20935132,89.196,89.11,8.63696547]
[1772066114893,8.20935132,89.196,89.111,8.5404555]
[1772066115098,8.20935132,89.189,89.091,8.5404555]
[1772066115294,8.20935132,89.162,89.091,8.5404555]
[1772066115594,8.20935132,89.199,89.13,8.63696547]
[1772066115793,8.20935132,89.199,89.131,8.5404555]
[1772066116195,8.20935132,89.239,89.131,8.5404555]
[1772066116505,8.20935132,89.214,89.131,8.5404555]
[1772066116696,8.20935132,89.214,89.151,8.5404555]
[1772066116897,8.20935132,89.214,89.157,10.0931]
[1772066120400,8.20935132,89.214,89.132,8.5404555]
[1772066121503,8.20935132,89.214,89.164,10.0923]
[1772066121695,18.29405132,89.232,89.164,18.6327555]
[1772066121897,8.20935132,89.231,89.164,18.6327555]
[1772066123301,8.63696547,89.25,89.164,18.6327555]
[1772066123302,8.20935132,89.227,89.164,8.5404555]
[1772066123602,8.20935132,89.227,89.155,8.5404555]
[1772066124404,8.20935132,89.227,89.15,8.63696547]
[1772066124405,8.20935132,89.227,89.172,10.0914]
[1772066125705,8.20935132,89.227,89.181,10.0904]
[1772066126009,8.28417618,89.245,89.181,10.0904]
[1772066127106,8.28417618,89.241,89.181,10.0904]
[1772066128301,8.28417618,89.239,89.189,10.0895]
[1772066128697,10.084,89.238,89.18,10.0906]
[1772066128905,8.28417618,89.237,89.18,10.0906]
[1772066129098,8.28417618,89.237,89.152,8.12279172]
[1772066130603,8.28417618,89.214,89.152,8.12279172]
[1772066131606,8.36325576,89.212,89.152,8.12279172]
[1772066131806,8.36325576,89.212,89.15,8.63696547]
[1772066131807,8.36325576,89.212,89.131,8.84573769]
[1772066132710,8.36325576,89.212,89.148,8.84573769]
[1772066133105,10.0871,89.211,89.148,8.84573769]
[1772066133301,8.36325576,89.212,89.148,8.84573769]
[1772066134609,8.36325576,89.203,89.148,8.84573769]
[1772066134914,8.36325576,89.203,89.131,8.84573769]
[1772066135102,10.0899,89.186,89.131,8.84573769]
[1772066135303,8.36325576,89.203,89.131,8.84573769]
[1772066137815,10.0891,89.194,89.133,8.84573769]
[1772066138114,18.45235576,89.194,89.133,8.84573769]
[1772066138315,8.36325576,89.193,89.133,8.84573769]
[1772066139015,8.36325576,89.193,89.136,10.0955]
[1772066139608,8.36325576,89.245,89.167,8.84573769]
[1772066140313,1.95068358,89.264,89.155,10.0933]
[1772066140314,8.36325576,89.231,89.155,10.0933]
[1772066140510,8.36325576,89.231,89.151,8.84573769]
[1772066140711,8.36325576,89.219,89.134,8.84573769]
[1772066140915,8.63696547,89.22,89.134,8.84573769]
[1772066140916,8.36325576,89.191,89.134,8.84573769]
[1772066141310,8.00928997,89.251,89.134,8.84573769]